[Event "Chinese Championship-B Women 2024"]
[Site "Liaocheng"]
[Date "2024.04.25"]
[Round "10.13"]
[White "Liu, Youyin"]
[Black "Lou, Yuxin"]
[Result "1/2-1/2"]
[ECO "C01"]
[WhiteElo "1840"]
[BlackElo "1706"]
[Annotator "NA RC"]
[PlyCount "172"]
[EventDate "2024.04.24"]
[EventType "swiss"]
[EventCountry "CHN"]
[SourceTitle "playchess.com"]
[Source "ChessBase"]
[SourceQuality "1"]
[TimeControl "5400+30"]

1. e4 {[%emt 1:31:00]} c5 {[%emt 0:00:06]} 2. Nf3 {[%emt 0:00:00]} Nc6 {[%emt 0:00:09]} 3. c3 {[%emt 0:00:00]} e6 {[%emt 0:00:16]} 4. d4 {[%emt 0:00:00]} d5 {[%emt 0:00:12]} 5. exd5 {[%emt 0:00:00]} exd5 {[%emt 0:00:09]} 6. dxc5 {[%emt 0:00:00]} Bxc5 {[%emt 0:00:16]} 7. Bd3 {[%emt 0:00:00]} Nf6 {[%emt 0:00:33]} 8. O-O {[%emt 0:00:00]} O-O {[%emt 0:02:01]} 9. Bg5 {[%emt 0:00:00]} Bg4 {[%emt 0:01:26]} 10. Nbd2 {[%emt 0:00:00]} h6 {[%emt 0:02:34] C01: French: Exchange Variation.} 11. Bh4 {[%emt 0:00:00]} Ne5 {[%emt 1:28:18]} 12. Be2 {[%emt 0:05:30]} Ng6 {[%emt 0:00:30]} 13. Nb3 {[%emt 0:00:00]} Nxh4 {[%emt 0:00:00]} 14. Nxc5 {[%emt 0:00:00]} Ng6 {[%emt 0:00:00]} 15. h3 {[%emt 0:00:00]} Bxf3 16. Bxf3 {[%emt 0:00:00]} Qb6 {[%emt 0:00:00]} 17. Nb3 {[%emt 0:00:00]} Rad8 {[%emt 0:00:00]} 18. Qd4 {[%emt 0:00:00]} Qxd4 19. Nxd4 {[%emt 0:00:00]} Ne5 {[%emt 0:00:00]} 20. Rfe1 {[%emt 0:00:00]} Nd3 {[%emt 0:00:00]} 21. Re7 {[%emt 0:00:00]} Rb8 {[%emt 0:00:00]} 22. Rd1 {[%emt 0:00:00]} Nxb2 {[%emt 0:00:00]} 23. Rb1 {[%emt 0:00:00]} Na4 $11 {[%emt 0:00:00]} 24. Rexb7 {[%emt 0:00:00]} Rbc8 {[%emt 0:00:00]} 25. Rxa7 {[%emt 0:00:00]} Nxc3 {[%emt 0:00:00]} 26. Rbb7 {[%emt 0:00:00]} Rb8 {[%emt 0:00:00]} 27. Rc7 {[%emt 0:00:00]} Nb5 {[%emt 0:00:00]} 28. Nxb5 {[%emt 0:00:00]} Rxb5 {[%emt 0:00:00]} 29. a4 {[%emt 0:00:00]} Rb1+ {[%emt 0:00:00]} 30. Kh2 {[%emt 0:00:00]} d4 {[%emt 0:00:00]} 31. Rc4 {[%emt 0:00:00]} Rd8 {[%emt 0:00:00]} 32. Ra8 {[%emt 0:00:00]} Rxa8 {[%emt 0:00:00]} 33. Bxa8 {[%emt 0:10:30]} d3 {[%emt 0:00:00]} 34. Rd4 {[%emt 0:00:30]} Ra1 {[%emt 0:00:00]} 35. Bc6 {[%emt 0:00:00]} Ra2 {[%emt 0:00:00]} 36. Kg3 {[%emt 0:00:00]} d2 {[%emt 0:00:00]} 37. Kf3 {[%emt 0:00:00]} Rc2 {[%emt 0:00:00]} 38. Bb5 {[%emt 0:00:00]} Kf8 {[%emt 0:00:00]} 39. Ke3 {[%emt 0:00:00]} Ke7 {[%emt 0:00:00]} 40. Rxd2 {[%emt 0:00:00]} Rc3+ {[%emt 0:00:00]} 41. Kd4 {[%emt 0:00:00]} Ra3 {[%emt 0:00:00]} 42. Kc4 {[%emt 0:00:00]} Ke6 {[%emt 0:00:00]} 43. Kb4 {[%emt 0:04:30]} Ra1 {[%emt 0:00:00]} 44. Ka5 {[%emt 0:00:00]} g5 {[%emt 0:00:00]} 45. Ka6 {[%emt 0:00:00]} Ke5 {[%emt 0:00:00]} 46. a5 {[%emt 0:00:00]} Nd5 {[%emt 0:00:00]} 47. Bc4 {[%emt 0:00:00]} Nb4+ {[%emt 0:00:00]} 48. Kb5 {[%emt 0:00:00]} Rb1 {[%emt 0:00:00]} 49. Bxf7 {[%emt 0:00:00]} Nd3+ {[%emt 0:00:00]} 50. Kc6 {[%emt 0:01:06]} Rc1+ {[%emt 0:00:00]} 51. Kb6 {[%emt 0:00:20]} Rb1+ {[%emt 0:00:00]} 52. Ka7 {[%emt 0:00:13]} Nb4 {[%emt 0:00:00]} 53. Kb6 {[%emt 0:00:56]} Nd5+ {[%emt 0:00:00]} 54. Kc6 {[%emt 0:00:59]} Rc1+ {[%emt 0:00:00]} 55. Kb5 {[%emt 0:00:55]} Rb1+ {[%emt 0:00:00]} 56. Kc4 {[%emt 0:00:30]} Rc1+ {[%emt 0:00:00]} 57. Kb3 {[%emt 0:00:11]} Nc7 {[%emt 0:00:00]} 58. Rc2 {[%emt 0:00:59]} Rb1+ {[%emt 0:00:00]} 59. Ka2 {[%emt 0:00:18]} Rb7 {[%emt 0:00:00]} 60. Re2+ $2 {[%emt 0:01:04]} (60. Rc5+ $18 {is more deadly.} Kd4 61. Rc6) 60... Kf6 {[%emt 0:00:00]} 61. Bc4 {[%emt 0:00:21]} Rb4 {[%emt 0:00:00]} 62. Bb3 {[%emt 0:00:21]} Rb5 {[%emt 0:00:00]} 63. Kb2 {[%emt 0:01:01]} Rxa5 {[%emt 0:00:00]} 64. Rc2 {[%emt 0:00:08]} Nd5 {[%emt 0:00:00]} 65. Rc6+ {[%emt 0:00:33]} Kg7 {[%emt 0:00:00]} 66. g3 {[%emt 0:00:42]} Ne7 {[%emt 0:00:00]} 67. Re6 {[%emt 0:00:30]} Nf5 {[%emt 0:00:00]} 68. Kc3 {[%emt 0:00:12]} Rb5 {[%emt 0:00:00]} 69. Bc4 {[%emt 0:00:35]} Rb7 {[%emt 0:00:00]} 70. Bd3 {[%emt 0:00:25]} Rc7+ {[%emt 0:00:00]} 71. Kd2 {[%emt 0:00:10]} Ne7 {[%emt 0:00:00]} 72. Ke2 {[%emt 0:00:28]} Ng8 {[%emt 0:00:00]} 73. Rd6 {[%emt 0:01:10]} Nf6 {[%emt 0:30:30]} 74. Kf3 {[%emt 0:00:04]} Rd7 {[%emt 0:00:00]} 75. Rxd7+ Nxd7 76. Ke4 {[%emt 0:01:24]} Kf6 77. f4 {[%emt 0:01:25]} Nc5+ {[%emt 0:02:00]} 78. Ke3 {[%emt 0:00:30]} Ne6 {[%emt 0:00:30]} 79. f5 {[%emt 0:00:00]} Nc5 {[%emt 0:00:00]} 80. g4 {[%emt 0:00:00]} Ke5 {[%emt 0:00:00]} 81. Bc2 {[%emt 0:00:00]} Nd7 {[%emt 0:00:00]} 82. Bb3 {[%emt 0:00:16]} Nf6 {[%emt 0:00:00]} 83. Be6 {[%emt 0:00:44]} h5 {[%emt 0:00:00]} 84. gxh5 {[%emt 0:00:31]} Nxh5 {[%emt 0:00:00]} 85. Kf3 {[%emt 0:00:12]} Kf6 {[%emt 0:00:00]} 86. Kg4 {[%emt 0:00:13]} Nf4 {[%emt 0:00:00]} 1/2-1/2

[Event "Chinese Championship-B Women 2024"]
[Site "Liaocheng"]
[Date "2024.04.25"]
[Round "10.14"]
[White "Zhu, Zile"]
[Black "Peng, Shiyang"]
[Result "1/2-1/2"]
[ECO "A30"]
[WhiteElo "1819"]
[BlackElo "1661"]
[Annotator "NA RC"]
[PlyCount "64"]
[EventDate "2024.04.24"]
[EventType "swiss"]
[EventCountry "CHN"]
[SourceTitle "playchess.com"]
[Source "ChessBase"]
[SourceQuality "1"]
[TimeControl "5400+30"]

1. Nf3 {[%emt 0:00:03]} Nf6 {[%emt 0:00:20]} 2. c4 {[%emt 0:00:06]} e6 {[%emt 0:00:32]} 3. g3 {[%emt 0:00:07]} b6 {[%emt 0:00:09]} 4. Bg2 {[%emt 0:00:04]} Bb7 {[%emt 0:00:06]} 5. O-O {[%emt 0:00:07]} c5 {[%emt 0:00:27]} 6. Nc3 {[%emt 0:00:08]} Be7 {[%emt 0:00:26]} 7. Re1 {[%emt 0:00:26]} Ne4 {[%emt 0:03:46]} 8. Nxe4 {[%emt 0:07:23]} Bxe4 {[%emt 0:00:15]} 9. d3 {[%emt 0:00:05]} Bb7 {[%emt 0:00:41]} 10. e4 {[%emt 0:00:33] A30: Symmetrical English: Double Fianchetto and Hedgehog.} d6 {[%emt 0:02:02]} 11. Bd2 {[%emt 0:00:31]} Nd7 {[%emt 0:00:59]} 12. Bc3 {[%emt 0:01:23]} Bf6 {[%emt 0:03:04]} 13. Qc2 {[%emt 0:02:14]} O-O {[%emt 0:01:26]} 14. Rad1 {[%emt 0:00:52]} Rc8 {[%emt 0:04:22]} 15. Bxf6 {[%emt 0:09:17]} Nxf6 {[%emt 0:03:41]} 16. Nd2 {[%emt 0:01:06]} Qc7 {[%emt 0:03:12]} 17. Nb1 {[%emt 0:04:12]} d5 {[%emt 0:06:23]} 18. e5 {[%emt 0:01:21]} Nd7 {[%emt 0:02:36]} 19. f4 {[%emt 0:01:49]} Rfd8 {[%emt 0:02:43]} 20. Nc3 {[%emt 0:01:23]} Nf8 {[%emt 0:04:43]} 21. Qe2 {[%emt 0:09:34]} a6 {[%emt 0:03:05]} 22. b3 {[%emt 0:03:59]} h6 {[%emt 0:03:53]} 23. Bf3 {[%emt 0:05:46]} Bc6 {[%emt 0:05:39]} 24. Qf2 $11 {[%emt 0:10:59]} Qe7 {[%emt 0:04:59]} 25. Bg4 {[%emt 0:09:59]} d4 {[%emt 0:06:21]} 26. Nb1 {[%emt 0:01:43]} Qc7 {[%emt 0:04:23]} 27. Bf3 {[%emt 0:00:59]} Ng6 {[%emt 0:03:42]} 28. Be4 {[%emt 0:02:38]} Ne7 {[%emt 0:04:35]} 29. g4 {[%emt 0:00:44]} Rf8 {[%emt 0:04:02]} 30. Qh4 {[%emt 0:05:56]} Bxe4 {[%emt 0:05:43]} 31. Rxe4 {[%emt 0:07:19]} b5 {[%emt 0:03:05]} 32. Nd2 {[%emt 0:01:43]} Rb8 {[%emt 0:02:12]} 1/2-1/2

[Event "Chinese Championship-B Women 2024"]
[Site "Liaocheng"]
[Date "2024.04.25"]
[Round "10.15"]
[White "Wang, Jingyan"]
[Black "He, Yixuan"]
[Result "0-1"]
[ECO "D02"]
[WhiteElo "1632"]
[BlackElo "1812"]
[Annotator "NA RC"]
[PlyCount "90"]
[EventDate "2024.04.24"]
[EventType "swiss"]
[EventCountry "CHN"]
[SourceTitle "playchess.com"]
[Source "ChessBase"]
[SourceQuality "1"]
[TimeControl "5400+30"]

1. d4 {[%emt 0:00:04]} d5 {[%emt 0:00:07]} 2. Bf4 {[%emt 0:00:09]} Nf6 {[%emt 0:00:08]} 3. e3 {[%emt 0:00:11]} e6 {[%emt 0:00:34]} 4. Nf3 {[%emt 0:00:27]} c5 {[%emt 0:00:44]} 5. c3 {[%emt 0:00:41]} Nc6 {[%emt 0:01:36]} 6. Bd3 {[%emt 0:00:34]} c4 {[%emt 0:01:59]} 7. Bc2 {[%emt 0:00:26] D02: 1 d4 d5 2 Nf3 sidelines, including 2...Nf6 3 g3 and 2...Nf6 3 Bf4.} Be7 {[%emt 0:00:54]} 8. Nbd2 {[%emt 0:01:09]} O-O {[%emt 0:01:46]} 9. O-O {[%emt 0:01:58]} b5 {[%emt 0:05:56]} 10. Ne5 {[%emt 0:01:46]} Bb7 {[%emt 0:02:11]} 11. Nxc6 {[%emt 0:01:57]} (11. Qf3 $14 {was preferrable.}) 11... Bxc6 {[%emt 0:00:05]} 12. Be5 {[%emt 0:00:34]} Re8 {[%emt 0:04:23]} 13. Bxf6 {[%emt 0:01:35]} Bxf6 {[%emt 0:00:14]} 14. f4 {[%emt 0:00:27]} g6 {[%emt 0:07:23]} 15. Nf3 {[%emt 0:07:59]} Bd7 {[%emt 0:01:51]} 16. Ne5 {[%emt 0:03:49]} Rb8 {[%emt 0:02:00]} 17. a3 {[%emt 0:01:38]} a5 {[%emt 0:02:34]} 18. e4 {[%emt 0:02:38]} Rb6 {[%emt 0:03:50]} 19. Nxd7 Qxd7 {[%emt 0:00:05]} 20. e5 {[%emt 0:01:06]} Bg7 {[%emt 0:00:19]} 21. Qg4 {[%emt 0:03:17]} Reb8 {[%emt 0:04:41]} 22. Qf3 {[%emt 0:13:21]} b4 {[%emt 0:05:08]} 23. cxb4 {[%emt 0:00:40]} axb4 {[%emt 0:00:06]} 24. b3 {[%emt 0:01:45]} bxa3 {[%emt 0:04:55]} 25. bxc4 dxc4 {[%emt 0:02:42]} 26. Qc3 $2 {[%emt 0:03:07]} (26. Rxa3 Bf8 (26... Qxd4+ $2 27. Qe3 $19) 27. Re3) 26... Bf8 {[%emt 0:00:54]} 27. Rfd1 $19 {[%emt 0:03:24]} Qd5 {[%emt 0:04:11]} 28. Rdb1 {[%emt 0:04:07]} Bb4 {[%emt 0:05:30]} 29. Qe3 {[%emt 0:08:07]} Qa5 {[%emt 0:01:24]} 30. Qc1 {[%emt 0:03:33]} a2 {[%emt 0:10:46]} 31. Rb2 {[%emt 0:01:17]} Bd2 {[%emt 0:00:43]} 32. Rxb6 {[%emt 0:01:38]} Rxb6 {[%emt 0:00:27]} 33. Qf1 {[%emt 0:02:06]} Be3+ {[%emt 0:01:07]} 34. Kh1 {[%emt 0:00:06]} Bxd4 {[%emt 0:00:26]} 35. Qd1 {[%emt 0:00:56]} Rb2 {[%emt 0:04:22]} 36. h3 {[%emt 0:05:24]} Rxc2 {[%emt 0:00:53]} 37. Qxd4 {[%emt 0:00:22]} Qd2 {[%emt 0:02:33]} 38. Qe4 {[%emt 0:01:55]} Rc1+ {[%emt 0:01:03]} 39. Rxc1 {[%emt 0:00:08]} Qxc1+ {[%emt 0:00:05]} 40. Kh2 {[%emt 0:00:07]} a1=Q {[%emt 0:00:13]} 41. Qb7 {[%emt 0:01:07]} Qg1+ {[%emt 0:00:17]} 42. Kg3 {[%emt 0:00:08]} Qc3+ {[%emt 0:00:14]} 43. Kh4 {[%emt 0:00:12]} Qf2+ {[%emt 0:00:10]} 44. Kg5 {[%emt 0:00:09]} Qcg3+ {[%emt 0:00:35]} 45. Kf6 {[%emt 0:00:16]} Qh4# {[%emt 0:00:06]} 0-1

[Event "Chinese Championship-B Women 2024"]
[Site "Liaocheng"]
[Date "2024.04.26"]
[Round "11.1"]
[White "Hu, Yu A."]
[Black "Wang, Chuqiao"]
[Result "1-0"]
[ECO "C28"]
[WhiteElo "2148"]
[BlackElo "2302"]
[Annotator "TA"]
[PlyCount "77"]
[EventDate "2024.04.24"]
[EventType "swiss"]
[EventCountry "CHN"]
[SourceTitle "playchess.com"]
[Source "ChessBase"]
[SourceQuality "1"]
[TimeControl "5400+30"]

{[%evp 11,77,13,45,33,56,51,100,108,318,343,350,343,434,447,466,375,428,352,391,388,478,387,392,377,393,391,377,304,399,368,422,408,461,417,449,445,476,406,476,404,393,391,441,448,527,508,505,503,484,427,661,650,657,661,625,621,701,728,785,756,793,795,783,777,738,766,745,743]} 1. e4 {[%emt 0:01:00]} e5 {[%emt 0:00:05]} 2. Bc4 {[%emt 0:00:21]} Nf6 {[%emt 0:01:38]} 3. d3 {[%emt 0:00:12]} Bc5 {[%emt 0:01:19]} 4. Nc3 {[%emt 0:08:28]} Nc6 {[%emt 0:05:35]} 5. Bg5 {[%emt 0:26:09][%cal Bc1g5,Bg5h4,Bh4g3][%mdl 32]} h6 {[%emt 0:00:29]} 6. Bh4 {[%emt 0:00:16]} g5 {[%emt 0:01:05]} 7. Bg3 {[%emt 0:00:13]} d6 {[%emt 0:00:42]} 8. h4 {[%emt 0:01:18] aiming for hxg5.} Bg4 {[%emt 0:07:54] [#]} (8... Rg8 $14) 9. f3 $1 $16 {[%emt 0:04:34][%cal Bf2f3,Bf3g4][%mdl 32] hxg5 would now be deadly. White is better.} Nh5 $2 {[%emt 0:01:36]} (9... Be6 $16 {was worth a try.}) 10. fxg4 $18 {[%emt 0:01:41]} Nxg3 {[%emt 0:00:13] [#]} 11. Qf3 $1 {[%emt 0:00:03][%csl LRf7,LRg3]} Rh7 {[%emt 0:11:04]} (11... f5 12. Qxg3) 12. Qxg3 {[%emt 0:00:18]} gxh4 {[%emt 0:00:08]} 13. Qh3 {[%emt 0:00:20]} ({Weaker is} 13. Qxh4 Qxh4+ 14. Rxh4 Bxg1 $18) 13... Qg5 {[%emt 0:00:55]} 14. Nge2 {[%emt 0:00:33]} (14. Qxh4 Qxh4+ 15. Rxh4 Bxg1 $18) 14... Nb4 {[%emt 0:08:42]} 15. Bb3 {[%emt 0:00:26]} ({Worse is} 15. Qxh4 Nxc2+ 16. Kd1 Qxh4 17. Rxh4 Nxa1 $11) 15... Be3 {[%emt 0:02:20]} 16. Qxh4 {[%emt 0:02:05]} Bd2+ {[%emt 0:00:09]} 17. Kd1 {[%emt 0:00:05]} O-O-O {[%emt 0:00:36]} 18. Qxg5 {[%emt 0:00:29]} Bxg5 {[%emt 0:00:08]} 19. Nd5 {[%emt 0:01:08]} Nc6 {[%emt 0:00:05][%cal Bb4c6,Bc6d8,Bd8e6,Be6f8,Bf8d7,Bd7e5][%mdl 32]} 20. c3 {[%emt 0:04:18]} Rdh8 {[%emt 0:00:30]} 21. Ng3 {[%emt 0:00:53]} Nd8 {[%emt 0:00:12]} 22. Ke2 {[%emt 0:01:32]} Ne6 {[%emt 0:00:08]} 23. Nh5 {[%emt 0:00:31]} c6 {[%emt 0:00:34]} 24. Ne3 {[%emt 0:00:42][%cal Bd5e3,Be3f5,Bf5g3,Bg3h5,Bh5f6][%mdl 32]} Rg8 {[%emt 0:00:07]} 25. Nf5 {[%emt 0:02:24]} Kc7 {[%emt 0:00:21]} 26. Rad1 {[%emt 0:02:25]} Rg6 {[%emt 0:00:21]} 27. d4 {[%emt 0:01:16] White is clearly winning.} Nf8 {[%emt 0:01:58]} 28. dxe5 {[%emt 0:04:10]} dxe5 {[%emt 0:00:06]} 29. Rhf1 {[%emt 0:00:41]} Nd7 {[%emt 0:00:20]} 30. Nfg3 {[%emt 0:00:45]} Bf4 {[%emt 0:01:48]} (30... Nf6 $142 31. Rf5 (31. Nxf6 Bxf6 32. Kf3 Bg5 $18) 31... Nxh5) 31. Nxf4 {[%emt 0:00:40]} exf4 {[%emt 0:00:02]} 32. Rxf4 {[%emt 0:00:11]} Ne5 {[%emt 0:00:03]} 33. Rdf1 {[%emt 0:01:17]} Rhg7 {[%emt 0:01:35]} 34. Nh5 {[%emt 0:00:47]} Rh7 {[%emt 0:02:44]} 35. Nf6 {[%emt 0:00:46]} Rh8 {[%emt 0:00:08]} 36. Rf5 {[%emt 0:00:09]} Nxg4 {[%emt 0:00:58]} 37. Bxf7 {[%emt 0:01:21]} Rxf6 {[%emt 0:01:01]} 38. Rxf6 {[%emt 0:00:05]} Nxf6 {[%emt 0:00:04]} 39. Rxf6 {[%emt 0:00:08] White took control after the opening.   Weighted Error Value: White=0.25 (precise) /Black=0.56.  Loses game:     	---       	Black=1      Mistake:       	---       	Black=2      Inaccurate:     	---       	Black=1      OK:         	White=8     	Black=4      Best:        	White=1     	---        Strong:       	White=2     	---} 1-0

[Event "Chinese Championship-B Women 2024"]
[Site "Liaocheng"]
[Date "2024.04.26"]
[Round "11.2"]
[White "Zhou, Shumeng"]
[Black "Zhao, Yunqing"]
[Result "1-0"]
[ECO "B47"]
[WhiteElo "1800"]
[BlackElo "1965"]
[Annotator "TA"]
[PlyCount "45"]
[EventDate "2024.04.24"]
[EventType "swiss"]
[EventCountry "CHN"]
[SourceTitle "playchess.com"]
[Source "ChessBase"]
[SourceQuality "1"]
[TimeControl "5400+30"]

{[%evp 11,45,14,27,21,34,31,30,33,42,29,37,34,25,27,93,56,112,122,232,171,357,381,376,362,691,464,560,556,580,560,553,346,551,528,548,545]} 1. e4 {[%emt 0:00:02]} c5 {[%emt 0:00:04]} 2. Nf3 {[%emt 0:00:07]} e6 {[%emt 0:00:17]} 3. d4 {[%emt 0:00:07]} cxd4 {[%emt 0:00:13]} 4. Nxd4 {[%emt 0:00:02]} Nc6 {[%emt 0:00:14]} 5. Nc3 {[%emt 0:00:12]} Qc7 {[%emt 0:00:13]} 6. Be2 {[%emt 0:00:59]} a6 {[%emt 0:00:10]} 7. Nxc6 {[%emt 0:00:16]} dxc6 {[%emt 0:03:41]} 8. O-O {[%emt 0:00:06]} e5 {[%emt 0:04:08]} 9. f4 {[%emt 0:00:33] White has an edge.} Bc5+ {[%emt 0:10:25]} 10. Kh1 {[%emt 0:00:05]} Bd4 {[%emt 0:04:07]} 11. Qd3 {[%emt 0:03:47]} Nf6 {[%emt 0:14:28]} 12. Qg3 {[%emt 0:12:46] Prevents Bg4} Rg8 {[%emt 0:10:30]} (12... Kf8 $11) 13. Bf3 {[%emt 0:07:45]} Nd7 {[%emt 0:13:43]} ({Black should play} 13... Be6 $14) 14. Rd1 $16 {[%emt 0:05:18]} f6 {[%emt 0:12:31]} (14... a5 $16 {might work better.} 15. f5 Ba7) 15. Ne2 {[%emt 0:16:20][%cal Bc3e2,Be2d4,Bd4f3][%mdl 32]} exf4 $2 {[%emt 0:04:48] [#]} (15... Bc5 16. b4 Bb6) 16. Bh5+ $18 {[%emt 0:00:57]} (16. Bxf4 Be5 $16) (16. Qxf4 Qxf4 17. Nxf4 Ba7 $11) (16. Nxf4 Qe5 17. Qh4 Nf8 $14) 16... g6 {[%emt 0:08:57][%cal Bg7g6,Bg6h5][%mdl 32]} 17. Qb3 {[%emt 0:00:06]} ({Worse is} 17. Bxf4 Be5 $14) ({Weaker is} 17. Nxf4 Qe5 $16) (17. Qxf4 $2 Be5 18. Qh6 (18. Qg4 $2 Nc5 $19) 18... gxh5 $19) 17... Rh8 $2 {[%emt 0:03:48]} (17... Be5 18. Qxg8+ Nf8) 18. Nxd4 {[%emt 0:01:20]} (18. Nxf4 Qe5 $16) 18... gxh5 {[%emt 0:01:09]} 19. Qe6+ {[%emt 0:03:04]} Kf8 {[%emt 0:02:02]} 20. Nf3 {[%emt 0:01:12] Prevents Qe5} Rg8 {[%emt 0:01:14]} 21. Qf5 {[%emt 0:04:05]} Kg7 {[%emt 0:01:45]} (21... Qd8 $142 22. Bxf4 Kg7) 22. Bxf4 {[%emt 0:01:15]} Ne5 {[%emt 0:00:52]} 23. Qxh5 {[%emt 0:01:01] Weighted Error Value: White=0.60/Black=0.83.  Mistake:       	---       	Black=6      Inaccurate:     	White=3     	---        OK:         	White=6     	Black=3      Best:        	White=3     	Black=2} 1-0

[Event "Chinese Championship-B Women 2024"]
[Site "Liaocheng"]
[Date "2024.04.26"]
[Round "11.3"]
[White "Du, Yuxin"]
[Black "Jiang, Tianyu"]
[Result "1-0"]
[ECO "C02"]
[WhiteElo "1960"]
[BlackElo "1929"]
[Annotator "RC"]
[PlyCount "111"]
[EventDate "2024.04.24"]
[EventType "swiss"]
[EventCountry "CHN"]
[SourceTitle "playchess.com"]
[Source "ChessBase"]
[SourceQuality "1"]
[TimeControl "5400+30"]

1. e4 {[%emt 0:00:02]} c5 {[%emt 0:00:08]} 2. Nf3 {[%emt 0:00:12]} e6 {[%emt 0:00:06]} 3. c3 {[%emt 0:00:54]} d5 {[%emt 0:00:34]} 4. e5 {[%emt 0:00:48]} Nc6 {[%emt 0:11:53]} 5. d4 {[%emt 0:00:48]} Bd7 {[%emt 0:00:07]} 6. a3 {[%emt 0:06:35]} c4 {[%emt 0:01:05]} 7. Bf4 {[%emt 0:03:06]} Nge7 {[%emt 0:10:16]} 8. h4 {[%emt 0:02:58]} h6 {[%emt 0:10:15]} 9. h5 {[%emt 0:02:43]} Qb6 {[%emt 0:16:56]} 10. Qc2 {[%emt 0:02:28]} O-O-O {[%emt 0:00:33]} 11. Nbd2 {[%emt 0:01:00]} Na5 {[%emt 0:00:17]} 12. Rb1 {[%emt 0:03:41]} Kb8 {[%emt 0:04:40]} 13. Be2 {[%emt 0:07:10]} Ka8 {[%emt 0:02:24]} 14. O-O {[%emt 0:01:11]} g5 {[%emt 0:08:13]} 15. Bh2 {[%emt 0:31:55]} Bg7 {[%emt 0:07:54]} 16. g4 {[%emt 0:01:19]} Rdf8 {[%emt 0:02:38]} 17. Bd1 {[%emt 0:06:51]} Nec6 {[%emt 0:03:29]} 18. Re1 {[%emt 0:06:37]} Re8 {[%emt 0:04:48]} 19. Bg3 {[%emt 0:06:20]} Qd8 {[%emt 0:01:25]} 20. b4 {[%emt 0:03:45]} cxb3 {[%emt 0:00:10]} 21. Qd3 {[%emt 0:00:57]} Bf8 {[%emt 0:01:44]} 22. a4 {[%emt 0:01:06]} Qc7 {[%emt 0:00:58]} 23. Bxb3 {[%emt 0:01:29]} Nxb3 {[%emt 0:02:07]} 24. Nxb3 {[%emt 0:00:06]} Rc8 {[%emt 0:00:56]} 25. Rec1 {[%emt 0:02:11]} Ba3 {[%emt 0:00:34]} 26. Rd1 {[%emt 0:00:07]} Be7 {[%emt 0:00:20]} 27. Nfd2 {[%emt 0:00:47]} Na5 {[%emt 0:00:56]} 28. Nxa5 {[%emt 0:00:12]} Qxa5 {[%emt 0:00:03]} 29. c4 {[%emt 0:01:39]} Qa6 {[%emt 0:06:09]} 30. Rdc1 {[%emt 0:01:02]} dxc4 {[%emt 0:01:29]} 31. Qf3 {[%emt 0:01:38]} c3 {[%emt 0:02:08]} 32. Rxc3 {[%emt 0:00:23]} Rxc3 {[%emt 0:00:19]} 33. Qxc3 {[%emt 0:00:05]} Bc6 {[%emt 0:00:08]} 34. a5 {[%emt 0:00:37]} Qe2 {[%emt 0:01:06]} 35. f3 {[%emt 0:01:08]} Rd8 {[%emt 0:00:31]} 36. Bf2 {[%emt 0:00:54]} Bf8 {[%emt 0:00:29]} 37. a6 {[%emt 0:01:00]} Qxa6 {[%emt 0:00:18]} 38. Ra1 {[%emt 0:00:10]} Ba4 {[%emt 0:00:31]} 39. Qc7 {[%emt 0:00:39]} Rb8 {[%emt 0:00:04]} 40. Qxf7 {[%emt 0:01:30]} Qc6 {[%emt 0:00:50]} 41. Ne4 {[%emt 0:00:53]} a6 {[%emt 0:00:26]} 42. Kg2 {[%emt 0:01:39]} Bb3 {[%emt 0:00:32]} 43. Nf6 {[%emt 0:00:24]} Bb4 {[%emt 0:00:52]} 44. Rb1 {[%emt 0:00:52]} Qc2 {[%emt 0:00:06]} 45. Rg1 {[%emt 0:00:36]} Bc3 {[%emt 0:00:28]} 46. Kg3 {[%emt 0:00:25]} Bd2 {[%emt 0:00:13]} 47. Nd7 {[%emt 0:00:30]} Bf4+ {[%emt 0:00:24]} 48. Kg2 {[%emt 0:00:05]} Qc7 {[%emt 0:01:03]} 49. d5 {[%emt 0:00:11]} b5 {[%emt 0:00:36]} 50. d6 {[%emt 0:00:52]} Qc2 {[%emt 0:00:43]} 51. Re1 {[%emt 0:00:46]} Rd8 {[%emt 0:00:31]} 52. Nb6+ {[%emt 0:00:26]} Kb8 {[%emt 0:00:02]} 53. Qe7 {[%emt 0:00:17]} Rh8 {[%emt 0:00:38]} 54. Nd7+ {[%emt 0:00:11]} Kb7 {[%emt 0:00:45]} 55. Nc5+ {[%emt 0:00:28]} Kc6 {[%emt 0:00:33]} 56. Qb7# {[%emt 0:00:07]} 1-0